bitfinex/quotes_ETHUSD_20250524
["timestamp","ask_amount","ask_price","bid_price","bid_amount"]
[1748047483228,3.95538327,2528.2,2528.1,33.188]
[1748047483458,7.97042366,2528.2,2528.1,33.188]
[1748047483660,7.93078893,2528.2,2528.1,33.188]
[1748047483963,4.71488327,2528.2,2528.1,33.188]
[1748047484191,5.5818957,2528.2,2528.1,33.188]
[1748047485158,6.1318957,2528.2,2528.1,17.112]
[1748047485364,6.1318957,2528.2,2528.1,45.038]
[1748047487785,6.1318957,2528.2,2528.1,17.112]
[1748047488089,6.1318957,2528.2,2528.1,45.043]
[1748047488252,6.1318957,2528.2,2528.1,33.192]
[1748047488452,6.1318957,2528.2,2528.1,45.043]
[1748047488897,6.1318957,2528.2,2528.1,17.112]
[1748047489209,17.34780136,2528.2,2528.1,33.192]
[1748047492094,13.5818957,2528.2,2528.1,33.192]
[1748047494916,14.1318957,2528.2,2528.1,17.112]
[1748047495115,14.1318957,2528.2,2528.1,45.05]
[1748047495433,17.34780136,2528.2,2528.1,33.196]
[1748047497509,16.79780136,2528.2,2528.1,33.196]
[1748047497665,13.5818957,2528.2,2528.1,33.196]
[1748047498071,16.79780136,2528.2,2528.1,33.196]
[1748047498271,17.34780136,2528.2,2528.1,33.196]
[1748047499414,17.34780136,2528.2,2528.1,45.051]
[1748047500477,13.5818957,2528.2,2528.1,45.051]
[1748047500672,3.95538327,2528.2,2528.1,45.051]
[1748047501086,3.95538327,2528.2,2528.1,45.8809]
[1748047501713,3.95538327,2528.2,2528.1,34.0259]
[1748047502013,3.95538327,2528.2,2528.1,45.8809]
[1748047503027,3.95538327,2528.2,2528.1,17.9419]
[1748047503230,4.7464457,2528.2,2528.1,33.196]
[1748047503427,5.5395457,2528.2,2528.1,45.051]
[1748047504715,9.30545136,2528.2,2528.1,45.051]
[1748047506641,6.0895457,2528.2,2528.1,45.051]
[1748047507265,14.0895457,2528.2,2528.1,45.051]
[1748047508542,13.5395457,2528.2,2528.1,45.051]
[1748047509067,12.7464457,2528.2,2528.1,45.051]
[1748047509873,3.95538327,2528.2,2528.1,45.051]
[1748047510171,11.95538327,2528.2,2528.1,45.051]
[1748047510551,12.77368327,2528.2,2528.1,45.051]
[1748047512436,12.77368327,2528.2,2528.1,17.112]
[1748047512637,12.77368327,2528.2,2528.1,45.02]
[1748047512838,14.76816626,2528.2,2528.1,45.02]
[1748047513336,14.76816626,2528.2,2528.1,45.8401]
[1748047513337,11.95538327,2528.2,2528.1,45.8401]
[1748047513533,3.95538327,2528.2,2528.1,45.8401]
[1748047519393,3.95538327,2528.2,2528.1,17.9321]
[1748047519598,3.95538327,2528.2,2528.1,45.8401]
[1748047525684,3.95538327,2528.2,2528.1,33.9851]
[1748047525927,4.7464457,2528.2,2528.1,33.165]
[1748047526085,7.96235136,2528.2,2528.1,33.165]
[1748047526288,3.95679183,2527.3,2527.2,0.8145]
[1748047526625,3.95679183,2527.3,2527.2,28.7195]
[1748047527392,3.95679183,2527.3,2527.2,0.8145]
[1748047527598,3.95679183,2527.3,2527.2,28.7195]
[1748047527987,3.95679183,2527.3,2527.2,16.8655]
[1748047528194,3.95679183,2527.3,2527.1,0.05]
[1748047528195,3.9569484,2527.2,2527.1,0.05]
[1748047528401,3.9569484,2527.2,2527.1,27.955]
[1748047528735,5.14398745,2527.2,2527.1,16.101]
[1748047528931,5.14398745,2527.2,2527.1,27.955]
[1748047529369,5.94738745,2527.2,2527.1,16.101]
[1748047529498,3.95820139,2526.4,2526.3,0.8045]
[1748047529816,3.95820139,2526.4,2526.3,12.6585]
[1748047531332,3.95820139,2526.4,2526.3,0.8045]
[1748047531539,3.95820139,2526.4,2526.3,12.6585]
[1748047531741,3.95820139,2526.4,2526.3,0.8045]
[1748047531950,3.95820139,2526.4,2526.3,12.6585]
[1748047533004,3.95820139,2526.4,2526.3,11.856]
[1748047533535,3.95851476,2526.2,2526.1,0.8545]
[1748047533753,3.95851476,2526.2,2526.1,12.7105]
[1748047535315,3.95851476,2526.2,2526.1,46.97357725]
[1748047535521,3.95823044,2526.4,2526.1,46.97357725]
[1748047535522,0.8289,2527.4,2526.2,0.8245]
[1748047535721,3.95752456,2526.9,2526.3,0.86407414]
[1748047535928,3.95788807,2526.6,2526.5,0.8245]
[1748047536122,3.95788807,2526.6,2526.5,17.56495]
[1748047536454,3.95763831,2526.8,2526.5,17.56495]
[1748047536669,3.95647873,2527.5,2526.6,0.8245]
[1748047536988,3.95773142,2526.7,2526.6,0.8245]
[1748047537263,3.95773142,2526.7,2526.6,28.7385]
[1748047537632,3.95773142,2526.7,2526.6,16.8805]
[1748047537965,3.95773142,2526.7,2526.6,28.7385]
[1748047538742,3.95763683,2526.8,2526.6,28.7385]
[1748047539057,3.95773142,2526.7,2526.6,28.7385]
[1748047539867,3.95773142,2526.7,2526.6,0.8245]
[1748047540054,3.95773142,2526.7,2526.6,28.7085]
[1748047540771,3.95773142,2526.7,2526.6,27.884]
[1748047542228,3.95773142,2526.7,2526.6,16.026]
[1748047542466,3.95773142,2526.7,2526.6,27.884]
[1748047542467,5.55776825,2526.7,2526.6,27.884]
[1748047544137,3.95851476,2526.2,2526.1,17.125]
[1748047544332,3.95851476,2526.2,2526.1,45.012]
[1748047544870,3.95851476,2526.2,2526.1,33.153]
[1748047545046,3.95851476,2526.2,2526.1,45.012]
[1748047546658,3.95851476,2526.2,2526.1,33.153]
[1748047546859,3.95851476,2526.2,2526.1,45.012]
[1748047548592,3.95851476,2526.2,2526.1,45.013]
[1748047548942,3.95851476,2526.2,2526.1,33.153]
[1748047549169,3.95851476,2526.2,2526.1,45.013]
[1748047550167,4.75021476,2526.2,2526.1,33.153]
[1748047550372,5.54190329,2526.2,2526.1,45.013]
[1748047551161,3.95851476,2526.2,2526.1,45.013]
[1748047552091,3.95851476,2526.2,2526.1,17.125]
[1748047552407,4.75021476,2526.2,2526.1,45.014]
[1748047553459,4.75021476,2526.2,2526.1,17.125]
[1748047553767,5.62107329,2526.2,2526.1,45.015]
[1748047555451,16.83697895,2526.2,2526.1,17.125]
[1748047555749,5.62107329,2526.2,2526.1,33.155]
[1748047556710,14.17107329,2526.2,2526.1,45.019]
[1748047557297,13.62107329,2526.2,2526.1,45.019]
[1748047557803,5.62107329,2526.2,2526.1,45.019]
[1748047558192,4.82937329,2526.2,2526.1,45.019]
[1748047558363,3.95851476,2526.2,2526.1,45.019]
[1748047561766,3.95851476,2526.2,2526.1,45.02]
[1748047563368,3.95851476,2526.2,2526.1,17.125]
[1748047563570,3.95851476,2526.2,2526.1,45.021]
[1748047564309,3.95851476,2526.2,2526.1,17.125]
[1748047564507,4.75020329,2526.2,2526.1,33.158]
[1748047564713,5.57480329,2526.2,2526.1,33.158]
[1748047565009,5.57480329,2526.2,2526.1,45.021]
[1748047565210,5.57480329,2526.2,2526.1,33.158]
[1748047565370,5.57480329,2526.2,2526.1,45.021]
[1748047565568,5.57480329,2526.2,2526.1,17.125]
[1748047565784,5.57480329,2526.2,2526.1,45.021]
[1748047566610,5.57480329,2526.2,2526.1,17.125]
[1748047566816,5.57480329,2526.2,2526.1,45.021]
[1748047567016,12.75020329,2526.2,2526.1,45.021]
[1748047567219,14.12480329,2526.2,2526.1,45.021]
[1748047567710,14.12480329,2526.2,2526.1,33.158]
[1748047570584,13.57480329,2526.2,2526.1,33.158]
[1748047571487,4.75020329,2526.2,2526.1,33.158]
[1748047571825,3.95851476,2526.2,2526.1,33.158]
[1748047572125,11.95851476,2526.2,2526.1,33.158]
[1748047574029,3.95851476,2526.2,2526.1,45.023]
[1748047575359,11.95851476,2526.2,2526.1,33.158]
[1748047575657,14.63559385,2526.2,2526.1,33.158]
[1748047576425,15.18559385,2526.2,2526.1,33.158]
[1748047576957,14.63559385,2526.2,2526.1,33.158]
[1748047577653,5.87179385,2526.2,2526.1,45.022]
[1748047577958,3.95851476,2526.2,2526.1,45.022]
[1748047578837,12.72331476,2526.2,2526.1,33.158]
[1748047579147,12.72331476,2526.2,2526.1,45.023]
[1748047579331,13.27331476,2526.2,2526.1,33.158]
[1748047579535,15.31807385,2526.2,2526.1,45.023]
[1748047581162,15.31807385,2526.2,2526.1,33.137]
[1748047583451,3.95851476,2526.2,2526.1,33.137]
[1748047583841,11.95851476,2526.2,2526.1,33.137]
[1748047585050,3.95851476,2526.2,2526.1,33.137]
[1748047585421,3.95851476,2526.2,2526.1,33.9227]
[1748047586546,3.95710498,2527.1,2526.2,0.7857]
[1748047586752,3.95835807,2526.3,2526.2,0.7857]
[1748047586935,3.95835807,2526.3,2526.2,12.6507]
[1748047591239,3.95835807,2526.3,2526.2,12.6497]
[1748047593466,3.95835807,2526.3,2526.2,0.7857]
[1748047593676,3.95835807,2526.3,2526.2,12.6487]
[1748047593947,3.95851476,2526.2,2526.1,17.125]
[1748047594141,3.95851476,2526.2,2526.1,33.134]
[1748047594346,3.95851476,2526.2,2526.1,44.997]
[1748047599294,0.1331,2525.0,2523.4,1.57693143]
[1748047599494,3.96275014,2523.5,2523.4,1.57693143]
[1748047599704,7.3747297,2523.5,2523.4,1.57693143]
[1748047599857,4.00238487,2523.5,2523.4,1.57693143]
[1748047600189,3.96275014,2523.5,2523.4,30.07093143]
[1748047600705,1.00835803,2523.5,2523.4,28.494]
[1748047600852,4.97110817,2523.5,2523.4,28.494]
[1748047601255,1.00835803,2523.5,2523.4,28.494]
[1748047601552,0.7877797,2523.5,2523.4,36.494]
[1748047602385,0.7877797,2523.5,2523.4,38.47193519]
[1748047602552,0.7877797,2523.5,2523.4,36.494]
[1748047602751,3.96275014,2523.5,2523.4,36.494]
[1748047602984,3.96262685,2523.6,2523.4,36.494]
[1748047603184,3.96275014,2523.5,2523.4,36.494]
[1748047604451,3.96275014,2523.5,2523.4,16.631]
[1748047604700,3.96275014,2523.5,2523.4,28.499]
[1748047604995,3.96290718,2523.4,2523.3,0.8221]
[1748047605205,3.96290718,2523.4,2523.3,37.3291]
[1748047607796,3.96290718,2523.4,2523.3,8.8221]
[1748047607995,0.757,2523.2,2522.1,0.25]
[1748047608197,3.96479264,2522.2,2522.1,17.629]
[1748047608558,3.96479264,2522.2,2522.1,29.499]
[1748047609175,4.51479264,2522.2,2522.1,0.25]
[1748047609361,8.57386117,2522.2,2522.1,17.629]
[1748047610074,8.57386117,2522.2,2522.1,0.25]
[1748047610278,9.39546117,2522.2,2522.1,17.634]
[1748047610687,17.39546117,2522.2,2522.1,17.634]
[1748047611163,5.0465,2521.6,2518.8,0.20658113]
[1748047611402,12.79032643,2519.7,2518.8,0.20658113]
[1748047611562,12.79032643,2519.7,2519.3,18.567]
[1748047611563,5.34032643,2519.7,2519.3,18.567]
[1748047611763,4.51872643,2519.7,2519.3,18.567]
[1748047611956,3.96872643,2519.7,2519.3,18.567]
[1748047612179,3.96872643,2519.7,2519.6,24.5780491]
[1748047612607,5.08906657,2519.7,2519.6,24.5780491]
[1748047612798,5.63906657,2519.7,2519.6,24.5780491]
[1748047613321,3.97030213,2518.7,2518.6,3.58215703]
[1748047613479,15.78642753,2518.7,2518.6,3.58215703]
[1748047613822,4.52109046,2518.2,2518.1,8.02348746]
[1748047614124,5.37029074,2518.2,2518.1,27.39748746]
[1748047614285,3.97109046,2518.2,2518.1,27.39748746]
[1748047614482,3.97109046,2518.2,2518.1,8.02348746]
[1748047614705,3.97109046,2518.2,2518.1,39.27748746]
[1748047614932,5.27909046,2518.2,2518.1,8.02348746]
[1748047615095,5.98070328,2518.2,2518.1,27.39748746]
[1748047615295,4.72909046,2518.2,2518.1,27.39748746]
[1748047615712,5.27909046,2518.2,2518.1,27.39748746]
[1748047615942,4.72909046,2518.2,2518.1,27.39748746]
[1748047616114,5.27909046,2518.2,2518.1,8.02348746]
[1748047616286,6.92779493,2518.2,2518.1,8.02348746]
[1748047616621,6.92779493,2518.2,2518.1,19.435]
[1748047617000,4.72909046,2518.2,2518.1,19.435]
[1748047617418,4.72909046,2518.2,2518.1,0.05]
[1748047617581,4.72909046,2518.2,2518.1,19.435]
[1748047618189,3.97109046,2518.2,2518.1,19.435]
[1748047618698,3.97109046,2518.2,2518.1,0.05]
[1748047618913,3.97109046,2518.2,2518.1,31.321]
[1748047620437,3.97024168,2518.8,2518.1,34.4531]
[1748047620604,0.32962462,2518.8,2518.2,8.0]
[1748047620801,3.97061743,2518.5,2518.4,8.0]
[1748047621007,3.97061743,2518.5,2518.4,31.283]
[1748047621203,0.32962462,2518.8,2518.4,31.283]
[1748047621418,0.32962462,2518.8,2518.7,0.8264]
[1748047621729,3.969833,2519.0,2518.7,0.8264]
[1748047621915,3.9695705,2519.2,2518.7,0.8264]
[1748047622227,3.96944842,2519.3,2518.8,0.55]
[1748047622744,3.96913754,2519.5,2518.9,8.0]
[1748047622929,3.96930648,2519.4,2519.0,13.14400436]
[1748047623758,3.96793905,2520.2,2519.1,8.0]
[1748047623955,3.96867827,2519.8,2519.2,0.8204]
[1748047624250,3.96746677,2520.5,2519.2,0.8204]
[1748047624541,3.9693017,2519.4,2519.2,0.8204]
[1748047624723,3.96930028,2519.4,2519.2,0.8204]
[1748047625241,3.96930028,2519.4,2519.3,44.519]
[1748047625559,3.96747971,2520.5,2519.4,11.96910015]
[1748047625728,3.96904147,2519.5,2519.4,8.0]
[1748047626049,3.96919901,2519.4,2519.3,17.125]
[1748047626200,3.96919901,2519.4,2519.3,48.411]
[1748047627729,3.96909592,2519.5,2519.3,48.411]
[1748047628550,3.96892281,2519.6,2519.3,48.411]
[1748047628892,3.96885377,2519.7,2519.3,48.411]
[1748047629095,3.96887149,2519.7,2519.4,0.8186]
[1748047629506,3.2661254,2520.5,2519.4,0.8186]
[1748047629507,3.96836609,2520.0,2519.4,0.8186]
[1748047629731,3.96841301,2519.9,2519.4,0.8186]
[1748047629907,3.96811169,2520.1,2519.4,0.8186]
[1748047630134,3.96851872,2519.9,2519.4,0.8186]
[1748047630446,3.96855961,2519.9,2519.4,0.8186]
[1748047630596,3.96859145,2519.8,2519.4,0.8186]
[1748047630796,3.96847659,2519.9,2519.4,0.8186]
[1748047631238,3.96856955,2519.8,2519.4,0.8186]
[1748047631592,3.96856955,2519.8,2519.5,11.893]
[1748047631994,3.96819609,2520.1,2519.5,15.86198413]
[1748047632198,4.33729872,2520.8,2519.5,11.893]
[1748047632413,3.96881953,2519.7,2519.5,11.893]
[1748047632607,3.9684369,2519.9,2519.5,11.893]
[1748047632809,3.96863539,2519.8,2519.5,11.893]
[1748047633697,0.37022078,2520.5,2519.8,0.8071]
[1748047633901,3.96776188,2520.4,2519.9,11.892]
[1748047634100,3.96794667,2520.2,2520.0,8.0]
[1748047634301,3.96782891,2520.3,2519.9,11.892]
[1748047634498,3.96762418,2520.4,2520.0,1.26991]
[1748047634696,3.96733447,2520.6,2520.0,1.26991]
[1748047634937,3.96746677,2520.5,2520.0,1.26991]
[1748047635354,3.96746677,2520.5,2520.1,36.517]
[1748047635355,3.96778357,2520.3,2520.1,36.517]
[1748047635544,3.96778357,2520.3,2520.1,38.38248725]
[1748047636041,3.96668331,2520.3,2520.1,38.38248725]
[1748047636343,3.96722318,2520.7,2520.2,0.8071]
[1748047636504,3.96778161,2520.3,2520.2,0.8071]
[1748047636703,3.96760579,2520.5,2520.2,1.9964]
[1748047636945,3.96760579,2520.5,2520.2,0.8071]
[1748047637151,3.96773441,2520.4,2520.3,31.284]
[1748047638062,3.96773441,2520.4,2520.2,0.8071]
[1748047638206,3.96773441,2520.4,2520.3,31.283]
[1748047638608,3.96778161,2520.3,2520.2,0.8071]
[1748047638924,3.96778161,2520.3,2520.2,32.0901]
[1748047639451,4.34294162,2520.3,2520.2,32.0901]
[1748047639663,3.96793905,2520.2,2520.1,17.124]
[1748047639965,3.96793905,2520.2,2520.1,48.407]
[1748047640609,3.96793905,2520.2,2520.1,17.124]
[1748047640806,5.19580056,2520.2,2520.1,17.124]
[1748047641045,5.57096057,2520.2,2520.1,48.404]
[1748047642105,0.37516001,2520.2,2520.1,48.404]
[1748047643037,3.9678438,2520.3,2520.1,49.1814]
[1748047643247,4.43767364,2520.6,2520.1,49.1814]
[1748047643462,0.47027018,2520.6,2520.4,3.96758972]
[1748047643611,0.47027018,2520.6,2520.5,0.83320326]
[1748047643812,0.47027018,2520.6,2520.5,1.57093665]
[1748047644135,4.43757955,2520.6,2520.5,31.7344]
[1748047644636,0.47027018,2520.6,2520.5,31.7344]
[1748047644834,3.96730937,2520.6,2520.5,30.957]
[1748047645354,3.9669946,2520.8,2520.5,48.079]
[1748047645538,4.01684237,2520.9,2520.5,48.079]
[1748047645742,3.96730937,2520.6,2520.5,17.122]
[1748047645940,3.96705832,2520.8,2520.5,48.077]
[1748047646257,0.05,2520.9,2520.5,48.077]
[1748047646258,4.01697135,2520.9,2520.5,48.077]
[1748047646443,0.376192,2520.7,2520.5,48.077]
[1748047647450,0.376192,2520.7,2520.6,0.7774]
[1748047648514,0.376192,2520.7,2520.6,4.74470937]
[1748047648727,0.376192,2520.7,2520.6,10.76470937]
[1748047649539,0.376192,2520.7,2520.6,19.31470937]
[1748047649540,0.12430222,2520.7,2520.6,19.31470937]
[1748047650354,0.05,2520.9,2520.8,3.9669946]
[1748047651070,0.05,2520.9,2520.7,3.96704891]
[1748047651285,0.47027018,2521.2,2520.8,3.9669946]
[1748047651683,0.47027018,2521.2,2520.6,19.31467297]
[1748047651684,0.47027018,2521.2,2520.9,3.96683344]
[1748047651846,0.47027018,2521.2,2521.1,0.8252]
[1748047652043,4.43621418,2521.5,2521.1,0.8252]
[1748047652384,3.9660506,2521.4,2521.2,11.887]
[1748047652684,3.96611997,2521.4,2521.2,11.887]
[1748047653185,3.96636522,2521.2,2521.1,0.8252]
[1748047653387,3.96636522,2521.2,2521.1,11.887]
[1748047654752,3.96628247,2521.3,2521.1,11.887]
[1748047655146,3.96628247,2521.3,2521.2,36.176]
[1748047656150,4.75950389,2521.3,2521.2,48.062]
[1748047657195,3.96628247,2521.3,2521.2,48.062]
[1748047660867,0.47027018,2521.7,2521.2,48.062]
[1748047661196,3.96608332,2521.4,2521.2,48.062]
[1748047661697,3.96594813,2521.5,2521.2,48.062]
[1748047661860,3.96615355,2521.4,2521.2,48.062]
[1748047662062,3.96573531,2521.7,2521.2,48.062]
[1748047662279,3.96545357,2521.8,2521.2,48.062]
[1748047662483,4.48557878,2521.9,2521.2,48.062]
[1748047662688,3.96565847,2521.7,2521.2,48.062]
[1748047663405,3.96574806,2521.6,2521.2,48.062]
[1748047663612,0.61703464,2522.1,2521.9,0.7523]
[1748047663815,0.61703464,2522.1,2522.0,33.00463797]
[1748047663984,0.61703464,2522.1,2522.0,14.485]
[1748047663985,0.47244594,2522.1,2522.0,14.485]
[1748047664171,0.47244594,2522.1,2522.0,18.45010705]
[1748047665125,0.05,2522.9,2522.5,3.96431488]
[1748047665276,0.05,2522.9,2522.6,19.2323]
[1748047665483,0.05,2522.9,2522.7,34.32790712]
[1748047666178,0.05,2522.9,2522.7,30.364]
[1748047667319,0.05,2522.9,2522.8,11.884]
[1748047667516,0.05,2522.9,2522.6,2.67553]
[1748047667716,3.96423762,2522.6,2522.3,0.7523]
[1748047667914,3.96423762,2522.6,2522.4,30.357]
[1748047668117,3.9641016,2522.7,2522.4,30.357]
[1748047668543,3.9641016,2522.7,2522.3,0.7523]
[1748047668898,3.9641016,2522.7,2522.4,30.357]
[1748047669292,3.9641016,2522.7,2522.5,30.357]
[1748047669722,3.9641016,2522.7,2522.6,30.357]
[1748047670383,3.9641016,2522.7,2522.3,0.7523]
[1748047670583,3.9641016,2522.7,2522.4,30.354]
[1748047670897,0.79778256,2522.7,2522.0,17.113]
[1748047671097,3.96494984,2522.1,2522.0,17.113]
[1748047671293,3.96485854,2522.2,2522.0,47.466]
[1748047671908,0.7553,2522.8,2522.0,47.466]
[1748047672089,3.96433468,2522.5,2522.0,47.466]
[1748047672290,3.96468999,2522.3,2522.0,47.466]
[1748047672496,3.96468999,2522.3,2522.0,17.113]
[1748047672805,3.96433468,2522.5,2522.1,30.353]
[1748047673125,4.71918426,2522.8,2522.1,30.353]
[1748047673126,0.7553,2522.8,2522.1,30.353]
[1748047673527,3.96441965,2522.5,2522.1,30.353]
[1748047673832,3.96422344,2522.6,2522.1,30.353]
[1748047674446,3.96422344,2522.6,2521.5,3.96585891]
[1748047674447,3.96463545,2522.3,2522.2,47.46]
[1748047678409,4.74233545,2522.3,2522.2,47.46]
[1748047678624,4.74233545,2522.3,2522.2,17.107]
[1748047678826,5.6130181,2522.3,2522.2,47.46]
[1748047679321,4.74233545,2522.3,2522.2,47.46]
[1748047680718,3.96463545,2522.3,2522.2,47.46]
[1748047681067,0.7777,2522.8,2522.2,47.46]
[1748047681410,3.96463545,2522.3,2522.2,47.46]
[1748047681951,3.96454396,2522.4,2522.2,47.46]
[1748047683255,3.96442927,2522.5,2522.2,47.46]
[1748047683909,3.96450174,2522.4,2522.2,47.46]
[1748047684138,3.96439685,2522.5,2522.2,47.46]
[1748047684326,3.96449554,2522.4,2522.2,47.46]
[1748047684652,0.05,2522.9,2522.2,47.46]
[1748047684855,3.96409237,2522.7,2522.2,47.46]
[1748047685006,3.96409237,2522.7,2522.2,51.42476061]
[1748047685210,3.96409237,2522.7,2522.2,47.46]
[1748047685410,3.9639266,2522.8,2522.2,51.4247625]
[1748047685733,0.05,2522.9,2522.4,0.8279]
[1748047686264,4.01370172,2522.9,2522.4,0.8279]
[1748047686413,3.96388555,2522.8,2522.4,0.8279]
[1748047686615,4.01373775,2522.9,2522.4,0.8279]
[1748047687577,0.05,2522.9,2522.4,4.79237621]
[1748047687780,4.01370711,2522.9,2522.5,1.10402939]
[1748047688090,0.05,2522.9,2522.5,1.10402939]
[1748047688691,0.05,2522.9,2522.5,5.06831418]
[1748047688874,0.05,2522.9,2522.5,1.10402939]
[1748047689181,0.05,2522.9,2522.5,13.06826314]
[1748047689477,0.05,2522.9,2522.6,9.99161631]
[1748047689638,0.05,2522.9,2522.7,18.471]
[1748047689842,0.05,2522.9,2522.8,11.879]
[1748047690473,0.05,2522.9,2522.8,12.429]
[1748047690691,0.05,2522.9,2522.8,23.22964969]
[1748047690852,0.05,2522.9,2522.8,25.00870124]
[1748047691451,0.05,2522.9,2522.8,21.04485155]
[1748047691754,0.05,2522.9,2522.8,25.00870124]
[1748047693177,0.05,2522.9,2522.8,33.00870124]
[1748047693383,4.01369257,2522.9,2522.8,28.49385155]
[1748047693678,4.01369257,2522.9,2522.8,18.7148]
[1748047694084,4.01369257,2522.9,2522.8,6.02]
[1748047694389,0.05,2522.9,2522.8,11.878]
[1748047694703,4.01369257,2522.9,2522.8,11.878]
[1748047695176,4.01369257,2522.9,2522.8,55.018]
[1748047696141,0.05,2522.9,2522.8,55.018]
[1748047696344,4.01369257,2522.9,2522.8,43.14]
[1748047696682,4.01369257,2522.9,2522.8,17.102]
[1748047696987,4.01369257,2522.9,2522.8,47.016]
[1748047698451,4.01369257,2522.9,2522.8,35.14]
[1748047698780,0.05,2522.9,2522.8,47.016]
[1748047699757,0.05,2522.9,2522.8,43.22204969]
[1748047699963,0.05,2522.9,2522.8,49.24204969]
[1748047700187,0.05,2522.9,2522.8,25.18404969]
[1748047700801,0.05,2522.9,2522.8,31.20404969]
[1748047700948,0.61703464,2523.8,2523.5,3.96262817]
[1748047701144,0.05,2523.9,2523.7,3.96239768]
[1748047701759,4.57833575,2524.5,2523.9,0.55]
[1748047701989,0.61703464,2524.5,2523.8,8.55]
[1748047702294,0.61703464,2524.5,2523.8,0.55]
[1748047702613,3.96114966,2524.6,2524.1,0.55]
[1748047703192,3.96135171,2524.4,2524.1,0.55]
[1748047703392,3.96140316,2524.4,2524.1,0.55]
[1748047703553,3.96120502,2524.5,2524.1,0.55]
[1748047703748,3.96074147,2524.8,2524.1,8.55]
[1748047704054,3.9609293,2524.7,2524.1,14.5629785]
[1748047704292,3.9608665,2524.8,2524.2,0.7531]
[1748047704595,3.96102352,2524.6,2524.3,11.874]
[1748047704794,3.96087435,2524.7,2524.3,11.874]
[1748047704991,3.96123656,2524.5,2524.3,11.874]
[1748047705202,3.96087435,2524.7,2524.3,11.874]
[1748047705203,3.96115105,2524.6,2524.4,35.134]
[1748047705360,3.96096394,2524.7,2524.4,35.134]
[1748047705561,3.96105413,2524.6,2524.4,35.134]
[1748047705795,3.96093514,2524.7,2524.4,35.134]
[1748047705995,3.96118043,2524.5,2524.4,35.134]
[1748047707484,3.96118043,2524.5,2524.4,47.003]
[1748047708867,3.96118043,2524.5,2524.4,17.099]
[1748047709073,4.82929184,2524.5,2524.4,47.001]
[1748047709485,3.96118043,2524.5,2524.4,47.001]
[1748047711399,3.96103819,2524.6,2524.4,47.001]
[1748047711698,3.96070975,2524.8,2524.4,47.001]
[1748047711903,3.96118043,2524.5,2524.4,17.099]
[1748047712109,4.72008043,2524.5,2524.4,17.099]
[1748047712414,5.2317232,2524.5,2524.4,35.128]
[1748047712601,5.19208847,2524.5,2524.4,35.128]
[1748047713161,17.01100948,2524.5,2524.4,35.128]
[1748047713476,16.97137475,2524.5,2524.4,35.128]
[1748047715406,17.58840939,2524.5,2524.4,35.128]
[1748047715780,14.35912311,2524.5,2524.4,35.128]
[1748047717521,13.80912311,2524.5,2524.4,35.128]
[1748047718100,5.80912311,2524.5,2524.4,35.128]
[1748047718286,5.33711507,2524.5,2524.4,35.128]
[1748047718990,13.33711507,2524.5,2524.4,35.128]
[1748047719412,4.57821507,2524.5,2524.4,35.128]
[1748047719817,12.57821507,2524.5,2524.4,35.128]
[1748047720125,4.57821507,2524.5,2524.4,35.128]
[1748047720430,3.96118043,2524.5,2524.4,35.128]
[1748047725733,3.96118043,2524.5,2524.4,46.999]
[1748047726238,3.96118043,2524.5,2524.4,17.099]
[1748047726409,3.96118043,2524.5,2524.4,46.416]
[1748047732239,3.96118043,2524.5,2524.4,46.414]
[1748047732736,0.05,2524.9,2524.7,0.8064]
[1748047733031,3.96025435,2525.1,2524.8,11.871]
[1748047733231,3.96025435,2525.1,2524.9,17.444]
[1748047733939,0.61703464,2525.2,2524.9,17.444]
[1748047734094,0.61703464,2525.2,2525.0,2.9315]
[1748047734537,3.95997925,2525.3,2525.0,2.9315]
[1748047735621,3.96010885,2525.2,2525.0,2.9315]
[1748047735998,3.95917922,2525.8,2525.0,2.9315]
[1748047735999,3.95998185,2525.3,2525.0,2.9315]
[1748047736201,3.95972493,2525.5,2525.1,1.39319725]
[1748047736414,3.96000815,2525.3,2525.1,1.39319725]
[1748047737017,3.96008236,2525.2,2525.1,1.39319725]
[1748047737947,3.95999857,2525.3,2525.1,1.39319725]
[1748047738142,3.95971758,2525.5,2525.2,0.7521]
[1748047738351,3.95971758,2525.5,2525.3,12.08252973]
[1748047738556,3.95971758,2525.5,2525.4,34.532]
[1748047740467,3.95971758,2525.5,2525.4,46.399]
[1748047740757,3.95971758,2525.5,2525.4,34.53]
[1748047740964,3.95971758,2525.5,2525.4,46.397]
[1748047741737,3.95971758,2525.5,2525.4,49.11397027]
[1748047744363,3.95971758,2525.5,2525.4,37.24697027]
[1748047744532,3.95971758,2525.5,2525.4,17.091]
[1748047744736,3.95971758,2525.5,2525.4,46.395]
[1748047745466,3.95971758,2525.5,2525.4,46.394]
[1748047747493,0.05,2525.9,2525.4,46.394]
[1748047747692,3.95956281,2525.6,2525.4,46.394]
[1748047747852,3.95961195,2525.5,2525.4,46.394]
[1748047748518,3.95961195,2525.5,2525.4,34.528]
[1748047748674,3.95961195,2525.5,2525.4,46.394]
[1748047751255,3.95934979,2525.7,2525.4,46.394]
[1748047751675,3.95957464,2525.6,2525.4,46.394]
[1748047752301,3.95934979,2525.7,2525.4,46.394]
[1748047752598,3.9594623,2525.6,2525.4,47.155]
[1748047752951,3.95934423,2525.7,2525.4,47.155]
[1748047753154,3.95947695,2525.6,2525.4,47.155]
[1748047754366,0.05,2525.9,2525.4,47.155]
[1748047754567,3.95950268,2525.6,2525.4,47.155]
[1748047754768,0.05,2525.9,2525.4,47.155]
[1748047754769,3.95914165,2525.8,2525.4,47.155]
[1748047755126,3.95949501,2525.6,2525.4,47.155]
[1748047755670,3.95950734,2525.6,2525.4,47.155]
[1748047756105,3.95936748,2525.7,2525.4,47.155]